bitfinex/quotes_ETHUSD_20230405
["timestamp","ask_amount","ask_price","bid_price","bid_amount"]
[1680698550826,2.186,1907.8,1907.3,0.006]
[1680698551153,2.186,1907.8,1907.2,0.006]
[1680698551352,2.43114283,1907.8,1907.2,0.006]
[1680698554843,2.205,1907.5,1907.2,0.006]
[1680698555273,2.196,1907.4,1907.2,0.004]
[1680698555568,2.45162825,1907.6,1907.1,0.006]
[1680698555768,2.186,1907.6,1907.0,1.82765532]
[1680698555968,2.193,1907.7,1907.0,7.33565532]
[1680698556131,2.193,1907.7,1907.0,7.33765532]
[1680698556670,2.193,1907.7,1907.1,3.0]
[1680698556870,2.193,1907.7,1907.1,3.006]
[1680698556871,2.4123,1907.7,1907.1,3.006]
[1680698557643,2.205,1907.6,1907.1,3.006]
[1680698557843,2.205,1907.6,1907.1,0.006]
[1680698559773,0.94029077,1907.5,1907.1,0.006]
[1680698560180,0.94029077,1907.5,1907.0,1.82965532]
[1680698560471,0.94029077,1907.5,1907.0,1.82765532]
[1680698562377,1.13431985,1907.5,1907.0,1.82765532]
[1680698562578,0.94029077,1907.5,1907.0,1.82765532]
[1680698567575,2.63428255,1907.4,1907.0,1.806]
[1680698567781,2.86428255,1907.3,1907.0,0.006]
[1680698567982,2.86428255,1907.3,1906.9,0.006]
[1680698567983,3.31122081,1907.3,1906.9,0.006]
[1680698568181,1.092,1907.0,1906.9,0.006]
[1680698568381,3.83548255,1907.0,1906.7,0.006]
[1680698568580,1.095,1906.9,1906.7,0.006]
[1680698568746,1.095,1906.9,1906.6,0.006]
[1680698569146,1.095,1906.9,1906.5,0.006]
[1680698569687,3.84248255,1907.0,1906.5,0.006]
[1680698569868,1.091,1907.1,1906.5,0.006]
[1680698570069,4.30958255,1907.1,1906.5,0.006]
[1680698570583,1.095,1906.9,1906.5,0.006]
[1680698571158,0.006,1907.4,1906.5,5.514]
[1680698571361,5.94318999,1907.6,1907.0,8.14228255]
[1680698571362,0.002,1907.6,1907.0,8.14228255]
[1680698571562,1.7462307,1908.2,1907.2,8.14228255]
[1680698571563,0.11000001,1908.2,1907.2,8.14228255]
[1680698571770,0.11000001,1908.2,1907.4,5.508]
[1680698571964,0.11000001,1908.2,1907.8,5.508]
[1680698572177,0.11000001,1908.2,1907.8,5.516]
[1680698572488,0.11000001,1908.2,1907.9,13.33828255]
[1680698572688,0.11000001,1908.2,1907.9,13.36592766]
[1680698572857,0.11000001,1908.2,1908.0,8.12699677]
[1680698573059,0.11000001,1908.2,1908.1,3.0]
[1680698573275,0.11000001,1908.2,1908.1,9.52964284]
[1680698573451,0.11000001,1908.2,1908.1,11.9947784]
[1680698573656,0.11000001,1908.8,1908.1,11.9947784]
[1680698573657,0.11000001,1908.8,1908.2,1.69168158]
[1680698573997,0.11000001,1908.8,1908.7,12.13828255]
[1680698574179,0.11000001,1908.8,1908.7,15.37028255]
[1680698574387,1e-08,1908.8,1908.7,16.11063674]
[1680698574585,1e-08,1908.8,1908.7,11.28035419]
[1680698574890,1e-08,1908.8,1908.7,4.802]
[1680698575090,1e-08,1908.8,1908.7,4.8]
[1680698575271,1e-08,1908.8,1908.7,4.43428255]
[1680698575467,1e-08,1908.8,1908.7,4.82163602]
[1680698575673,1e-08,1908.8,1908.7,7.24763602]
[1680698575856,1e-08,1908.8,1908.7,4.802]
[1680698576055,1e-08,1908.8,1908.7,4.8]
[1680698576798,1e-08,1908.8,1908.7,1.8]
[1680698577374,0.00600001,1908.8,1908.7,1.8]
[1680698577571,1e-08,1908.8,1908.1,0.002]
[1680698577883,1e-08,1908.8,1907.9,13.546]
[1680698577884,0.55081802,1908.8,1907.9,13.546]
[1680698578088,0.55081802,1908.8,1907.9,19.054]
[1680698578290,2.191,1908.6,1907.9,19.054]
[1680698578587,2.197,1908.6,1907.9,7.81]
[1680698579401,2.197,1908.6,1907.9,2.302]
[1680698579719,0.2197,1908.5,1907.9,2.3]
[1680698579995,2.191,1908.3,1907.9,2.3]
[1680698580415,2.181,1908.4,1907.9,2.3]
[1680698581475,0.006,1908.4,1907.9,7.808]
[1680698581689,0.006,1908.6,1908.0,10.704]
[1680698581876,0.00600001,1908.8,1908.0,10.706]
[1680698582087,0.00600001,1908.8,1908.1,1.0]
[1680698582293,0.00600001,1908.8,1908.1,0.02164284]
[1680698582896,0.44579926,1908.7,1908.2,5.508]
[1680698583113,0.44579926,1908.7,1908.2,5.5316417]
[1680698583412,0.44579926,1908.7,1908.2,7.7276417]
[1680698583572,0.44579926,1908.7,1908.3,3.0]
[1680698583778,1e-08,1908.8,1908.3,3.0]
[1680698584771,1e-08,1908.8,1908.4,0.02163942]
[1680698585105,1e-08,1908.8,1908.5,5.508]
[1680698585294,1e-08,1908.8,1908.5,5.51]
[1680698585495,1e-08,1908.8,1908.6,11.14228255]
[1680698585696,1e-08,1908.8,1908.6,0.002]
[1680698586010,1e-08,1908.8,1908.6,3.0]
[1680698586798,1e-08,1908.8,1908.5,2.12363828]
[1680698586984,1e-08,1908.8,1908.5,2.1]
[1680698587909,1e-08,1908.8,1908.5,7.608]
[1680698588109,1e-08,1908.8,1908.7,5.508]
[1680698588296,1e-08,1908.8,1908.7,5.51]
[1680698588607,1e-08,1908.8,1908.7,0.002]
[1680698588808,1e-08,1908.8,1908.5,5.12163828]
[1680698589010,1e-08,1908.8,1908.6,2.63428255]
[1680698589396,1e-08,1908.8,1908.7,3.0]
[1680698589585,1e-08,1908.8,1908.7,5.63428255]
[1680698589789,1e-08,1908.8,1908.7,11.14428255]
[1680698590307,1e-08,1908.8,1908.7,13.57028255]
[1680698591786,0.11000001,1908.9,1908.8,3.141]
[1680698591787,2e-08,1908.9,1908.8,3.141]
[1680698591981,0.11673221,1909.8,1908.8,24.27798255]
[1680698592212,4.94701476,1909.8,1908.9,8.14228255]
[1680698592523,2.75701476,1909.8,1909.1,5.508]
[1680698592697,2.75701476,1909.8,1908.8,0.006]
[1680698592698,2.63428255,1909.2,1908.8,0.006]
[1680698592899,2.63428255,1909.2,1907.5,5.0]
[1680698592900,2.81760255,1909.2,1909.1,0.002]
[1680698593116,5.07271081,1909.2,1908.1,0.004]
[1680698593415,5.07271081,1909.2,1908.2,2.196]
[1680698593416,5.09571081,1909.2,1908.2,2.196]
[1680698593725,2.89971081,1909.2,1908.4,5.508]
[1680698593882,2.89971081,1909.2,1908.4,5.51]
[1680698593883,0.28997108,1909.1,1908.4,5.51]
[1680698594087,0.29597108,1909.1,1908.4,5.51]
[1680698594287,0.47930108,1909.1,1908.4,0.002]
[1680698594587,0.47930108,1909.1,1908.3,0.002]
[1680698594787,2.63428255,1909.0,1908.2,0.002]
[1680698594985,2.63428255,1908.7,1908.2,0.002]
[1680698595205,10.33728255,1908.3,1907.7,1.7]
[1680698595427,2.175,1907.9,1907.7,1.7]
[1680698595633,4.80928255,1907.9,1907.4,0.006]
[1680698595943,4.80928255,1907.9,1907.0,5.514]
[1680698596088,5.30855481,1907.9,1907.0,5.516]
[1680698596391,5.31055481,1907.9,1907.0,5.516]
[1680698596586,5.31055481,1907.9,1907.1,0.02165416]
[1680698596906,5.31055481,1907.9,1907.1,0.02765416]
[1680698597105,0.002,1907.9,1907.1,6.53565416]
[1680698597433,0.1854,1908.4,1907.1,21.19125416]
[1680698597639,2.81768255,1908.4,1907.1,21.19125416]
[1680698597786,2.63428255,1908.4,1907.1,21.19125416]
[1680698597993,2.63428255,1908.4,1907.2,0.23]
[1680698598193,2.63428255,1908.4,1907.3,5.508]
[1680698598431,0.002,1908.5,1907.6,4.01]
[1680698598630,4.027,1909.2,1907.7,8.75964735]
[1680698598939,3.03698255,1909.1,1907.9,5.508]
[1680698599153,2.63428255,1909.1,1908.0,3.0]
[1680698599308,1.0,1909.0,1908.0,3.0]
[1680698599647,2.91763255,1908.9,1908.0,3.0]
[1680698599936,3.30331516,1908.9,1908.0,0.006]
[1680698600121,3.11996516,1908.9,1908.0,0.006]
[1680698601340,0.38568261,1908.9,1908.1,5.52964281]
[1680698601510,0.38568261,1908.9,1908.2,3.0]
[1680698601735,0.38568261,1908.9,1908.2,3.006]
[1680698602126,0.38568261,1908.9,1908.3,0.02164054]
[1680698602466,0.38568261,1908.9,1908.3,0.02764054]
[1680698603339,0.38568261,1908.9,1908.4,8.14228255]
[1680698603681,0.38568261,1908.9,1908.5,8.508]
[1680698603975,0.11673221,1909.8,1908.7,5.508]
[1680698604139,0.53000543,1909.8,1908.8,5.63428255]
[1680698604350,0.53000543,1909.8,1908.8,5.64228255]
[1680698604564,0.53000543,1909.8,1908.9,5.508]
[1680698604736,1.53000543,1909.8,1908.9,0.008]
[1680698604942,0.41548599,1909.7,1909.0,2.63428255]
[1680698605164,0.41548599,1909.7,1909.0,0.02163261]
[1680698605372,0.36248545,1909.7,1909.0,0.02163261]
[1680698605574,0.36248545,1909.7,1909.0,5.52963261]
[1680698605739,0.36248545,1909.7,1909.1,3.0]
[1680698606656,0.36248545,1909.7,1909.1,3.006]
[1680698607263,0.36248545,1909.7,1909.2,0.02163035]
[1680698607471,0.36248545,1909.7,1909.1,3.0]
[1680698607654,0.36248545,1909.7,1909.0,0.006]
[1680698607857,0.36248545,1909.7,1908.9,8.516]
[1680698608670,0.36248545,1909.7,1908.9,8.53763374]
[1680698608848,0.36248545,1909.7,1909.0,6.508]
[1680698609050,0.36248545,1909.7,1909.1,3.0]
[1680698609800,0.36248545,1909.7,1909.1,3.02163147]
[1680698611234,0.36248545,1909.7,1909.1,8.52963147]
[1680698611534,0.36248545,1909.7,1909.1,3.02963147]
[1680698611839,0.36248545,1909.7,1909.1,3.02163147]
[1680698612046,0.36248545,1909.7,1909.1,8.52963147]
[1680698612225,0.36248545,1909.7,1909.1,11.17191402]
[1680698612424,0.36248545,1909.7,1909.1,11.16591402]
[1680698612637,0.36248545,1909.7,1909.3,5.508]
[1680698612804,0.11673221,1909.8,1909.4,8.508]
[1680698613014,0.11673221,1909.8,1909.4,8.51]
[1680698613539,0.11673221,1909.8,1909.4,11.14428255]
[1680698613914,0.11673221,1909.8,1909.6,5.508]
[1680698614117,0.11673221,1909.8,1909.7,8.508]
[1680698614315,0.11673221,1909.8,1909.7,11.37428255]
[1680698615309,0.11000001,1910.2,1909.8,9.765]
[1680698615648,0.11000001,1910.2,1910.1,12.15328255]
[1680698615649,0.06000001,1910.2,1910.1,12.15328255]
[1680698615804,0.06000001,1910.2,1910.1,13.67428255]
[1680698616452,0.06000001,1910.2,1910.1,13.69590271]
[1680698616960,0.06000001,1910.2,1910.1,13.67428255]
[1680698617504,0.06000001,1910.2,1910.1,10.81]
[1680698617728,0.06000001,1910.2,1910.1,13.44428255]
[1680698618208,0.06000001,1910.2,1910.1,13.46590271]
[1680698618963,0.06000001,1910.2,1910.1,13.69590271]
[1680698619312,0.06000001,1910.2,1910.1,5.302]
[1680698619838,0.06000001,1910.2,1910.1,13.44428255]
[1680698620531,0.06000001,1910.2,1910.1,5.302]
[1680698621131,0.06000001,1910.2,1910.1,13.44428255]
[1680698621327,0.06000001,1910.2,1910.1,13.67428255]
[1680698621555,0.06000001,1910.2,1910.1,11.04]
[1680698621712,0.06000001,1910.2,1910.1,10.81]
[1680698621914,2.69428256,1910.2,1909.8,0.006]
[1680698622155,2.69428256,1910.2,1909.1,1.75914823]
[1680698622156,2.90371081,1910.1,1909.3,1.7]
[1680698622726,2.63428255,1909.9,1909.3,1.7]
[1680698622956,3.81753255,1909.9,1909.3,1.7]
[1680698623167,0.38175326,1909.8,1909.3,1.7]
[1680698623460,3.02203581,1909.8,1909.3,1.7]
[1680698623957,2.63428255,1909.7,1909.3,1.7]
[1680698624115,0.18328,1909.6,1909.3,1.7]
[1680698624319,2.64028255,1909.7,1909.3,1.7]
[1680698624548,0.26402826,1909.6,1909.3,1.7]
[1680698624737,0.44730826,1909.6,1909.3,1.7]
[1680698625240,2.64028255,1909.7,1909.3,1.7]
[1680698625241,0.006,1909.7,1909.3,1.7]
[1680698625442,0.18925,1910.0,1909.3,1.7]
[1680698625642,2.81753255,1909.9,1909.3,1.7]
[1680698625844,2.64028255,1909.9,1909.3,1.7]
[1680698626515,0.006,1909.9,1909.3,1.72162921]
[1680698626720,0.18324,1910.0,1909.3,1.72162921]
[1680698626914,2.63428255,1909.9,1909.3,1.72162921]
[1680698627329,2.63428255,1909.9,1909.3,1.7]
[1680698628157,2.81753255,1909.9,1909.3,1.7]
[1680698628572,2.63428255,1909.9,1909.3,1.7]
[1680698628941,2.9166358,1909.9,1909.3,1.7]
[1680698629364,0.006,1910.0,1909.3,1.7]
[1680698629572,0.06000001,1910.2,1909.3,1.7]
[1680698629573,2.63428255,1909.9,1909.3,1.7]
[1680698630658,2.81753255,1909.9,1909.3,1.7]
[1680698631045,2.63428255,1909.9,1909.3,1.7]
[1680698631245,0.26342826,1909.8,1909.3,1.7]
[1680698631483,2.62875739,1909.7,1909.3,1.7]
[1680698631798,0.002,1909.9,1909.3,1.7]
[1680698631946,2.63428255,1909.9,1909.3,1.7]
[1680698632147,2.81753255,1909.9,1909.3,1.7]
[1680698632573,3.09928581,1909.9,1909.3,1.7]
[1680698632947,2.81755255,1909.8,1909.3,1.7]
[1680698633274,2.63428255,1909.8,1909.3,1.7]
[1680698634265,2.81754255,1909.8,1909.3,1.7]
[1680698634777,1.18327,1909.7,1909.3,1.7]
[1680698634982,2.75260955,1909.6,1909.3,1.7]
[1680698635181,0.118327,1909.6,1909.3,1.7]
[1680698635478,0.37189454,1909.7,1909.3,1.7]
[1680698635666,3.00617709,1909.7,1909.3,1.7]
[1680698635977,2.63428255,1909.7,1909.3,1.7]
[1680698636878,2.81755255,1909.7,1909.3,1.7]
[1680698637377,2.63428255,1909.7,1909.3,1.7]
[1680698638078,0.28975326,1909.9,1909.3,1.7]
[1680698638266,0.36652,1909.9,1909.3,1.7]
[1680698639156,0.54977,1909.9,1909.3,1.7]
[1680698639361,2.63428255,1909.8,1909.3,1.7]
[1680698639562,3.18408255,1909.8,1909.3,1.7]
[1680698639757,0.31840825,1909.7,1909.3,1.7]
[1680698639973,0.50167825,1909.7,1909.3,1.7]
[1680698640485,2.63428255,1909.6,1909.1,0.008]
[1680698640781,0.26342826,1909.5,1908.9,3.008]
[1680698640948,2.89771081,1909.5,1908.9,3.006]
[1680698641155,2.63428255,1909.5,1908.9,3.006]
[1680698642947,2.63428255,1909.5,1908.9,3.02763374]
[1680698648873,0.26595661,1909.4,1908.9,3.02763374]
[1680698649556,0.26595661,1909.4,1908.9,8.53563374]
[1680698649758,1.0,1909.9,1908.9,8.53163374]
[1680698650100,1.73637999,1910.0,1908.9,11.16591629]
[1680698650101,0.006,1910.0,1908.9,11.16591629]
[1680698650388,0.355314,1910.0,1908.9,11.16591629]
[1680698650891,0.54513999,1910.1,1908.9,11.16591629]
[1680698651064,6.21334999,1910.2,1908.9,11.16591629]
[1680698651387,0.90901289,1910.1,1909.0,5.508]
[1680698651607,1.53034789,1910.1,1909.1,3.0]
[1680698651812,0.621335,1910.1,1909.1,3.0]
[1680698652781,0.804565,1910.1,1909.1,3.0]
[1680698652983,1.34970499,1910.1,1909.1,3.0]
[1680698653159,5.8729705,1910.0,1909.0,3.008]
[1680698653366,5.8749705,1910.0,1908.9,3.008]
[1680698653558,0.58749705,1909.9,1908.9,3.006]
[1680698653878,0.58749705,1909.9,1908.9,5.64028255]
[1680698654081,0.1349705,1910.0,1909.0,5.508]
[1680698654269,0.621335,1910.1,1909.1,4.0]
[1680698655188,0.621335,1910.1,1909.1,3.0]
[1680698655189,2.63428255,1910.0,1909.1,3.0]
[1680698655494,2.63428255,1910.0,1909.2,0.02163035]
[1680698656465,2.63148257,1910.0,1909.2,5.53563035]
[1680698656665,2.63148257,1910.0,1909.3,3.0]
[1680698656964,2.63148257,1910.0,1909.3,3.006]
[1680698658274,2.81472257,1910.0,1909.3,3.006]
[1680698658499,0.28147226,1909.9,1909.3,0.006]
[1680698658699,0.46472226,1909.9,1909.2,0.02763035]
[1680698658867,0.83123226,1909.9,1909.2,0.02763035]
[1680698659195,1.83123226,1909.9,1909.2,0.02763035]
[1680698659365,0.83123226,1909.9,1909.2,0.02763035]
[1680698659560,0.28147226,1909.9,1909.2,0.02763035]
[1680698660099,1.28147226,1909.9,1909.2,0.02763035]
[1680698660399,1.0,1909.7,1909.2,0.006]
[1680698660577,2.63428255,1909.6,1909.1,0.006]
[1680698660771,2.99771081,1909.6,1909.1,0.006]
[1680698661568,2.99771081,1909.6,1909.1,0.004]
[1680698661764,2.99771081,1909.6,1909.0,0.006]
[1680698662866,3.18099081,1909.6,1909.0,0.006]
[1680698663067,2.192,1909.3,1909.0,0.006]
[1680698663271,0.2192,1909.2,1909.0,0.006]
[1680698663693,5.02748255,1909.2,1909.0,0.006]
[1680698663891,0.37682163,1909.1,1908.7,0.006]
[1680698664292,0.37682163,1909.1,1908.5,1.902]
[1680698664293,2.174,1908.8,1908.6,0.006]
[1680698664468,2.174,1908.8,1908.5,1.906]
[1680698664870,2.192,1908.6,1908.5,0.006]
[1680698665092,2.192,1908.6,1908.4,0.006]
[1680698665668,2.192,1908.6,1908.3,0.006]
[1680698666286,4.82628255,1908.5,1908.3,0.006]
[1680698666890,5.00967255,1908.5,1908.3,0.006]
[1680698667091,5.01167255,1908.5,1908.3,0.006]
[1680698667295,2.192,1908.4,1908.3,0.006]
[1680698667472,5.37646255,1908.4,1908.3,0.006]
[1680698667671,5.91630881,1908.4,1908.3,0.006]
[1680698668609,0.002,1908.4,1908.3,0.006]
[1680698668905,2.81767255,1908.4,1908.2,0.006]
[1680698669077,4.99167255,1908.4,1908.2,0.006]
[1680698669270,5.4910398,1908.4,1908.2,0.006]
[1680698669496,5.4930398,1908.4,1908.2,0.006]
[1680698670084,5.8598298,1908.4,1908.2,0.006]
[1680698671215,6.5934198,1908.4,1908.2,0.006]
[1680698671426,4.82628255,1908.3,1908.2,0.006]
[1680698671599,5.37649255,1908.3,1908.2,0.006]
[1680698671803,5.37849255,1908.3,1908.2,0.006]
[1680698673145,6.37849255,1908.3,1908.2,0.006]
[1680698673928,5.37849255,1908.3,1908.2,0.006]
[1680698674432,2.81968255,1908.3,1908.2,0.006]
[1680698674630,2.81768255,1908.3,1908.2,0.006]
[1680698674931,3.7935998,1908.3,1908.2,0.006]
[1680698675132,5.9855998,1908.3,1908.2,0.006]
[1680698675304,5.9875998,1908.3,1908.2,0.006]
[1680698676956,11.85172007,1908.3,1908.2,0.006]
[1680698677121,12.08172007,1908.3,1908.2,0.006]
[1680698677711,11.7255998,1908.3,1908.2,0.006]
[1680698677948,6.2175998,1908.3,1908.2,0.006]
[1680698678411,6.2175998,1908.3,1908.2,0.00202144]
[1680698678615,6.2235998,1908.3,1908.1,6.404]
[1680698678815,2.79435998,1908.2,1908.1,6.404]
[1680698679021,5.61205253,1908.2,1908.1,6.40602144]
[1680698679236,5.43064253,1908.2,1908.1,6.40602144]
[1680698679416,2.63628255,1908.2,1908.1,6.40602144]
[1680698679616,2.63428255,1908.2,1908.1,6.40602144]
[1680698680225,10.87852255,1908.2,1908.1,6.40602144]
[1680698680417,10.88052255,1908.2,1908.1,6.40602144]
[1680698680832,11.11052255,1908.2,1908.1,6.40602144]
[1680698681035,12.29554081,1908.2,1908.1,6.40602144]
[1680698681450,0.002,1908.2,1908.1,6.40602144]
[1680698681625,0.7414,1909.0,1908.1,6.402]
[1680698681831,2.63428255,1908.9,1908.1,7.17833301]
[1680698682025,4.90642255,1908.9,1908.1,7.17833301]
[1680698682231,2.192,1908.8,1908.1,6.402]
[1680698682427,2.63428255,1908.7,1908.1,6.42364281]
[1680698682631,2.85348255,1908.7,1908.1,6.42766425]
[1680698683752,2.85348255,1908.7,1908.1,7.3382348]
[1680698684052,2.63428255,1908.7,1908.2,1.0]
[1680698684350,2.63428255,1908.7,1908.2,1.00402144]
[1680698684592,2.63428255,1908.7,1908.2,1.91459199]
[1680698685153,2.63428255,1908.7,1908.2,0.91459199]
[1680698685578,2.63428255,1908.7,1908.2,1.91459199]
[1680698685761,0.07614,1908.9,1908.3,2.187]
[1680698685762,0.002,1908.9,1908.3,2.187]
[1680698685967,2.185,1909.3,1908.3,5.19102144]
[1680698686174,2.85278255,1909.2,1908.4,0.73896005]
[1680698686387,2.85278255,1909.2,1908.4,3.74298149]
[1680698687692,2.85278255,1909.2,1908.4,5.93198149]
[1680698687998,2.85278255,1909.2,1908.4,5.93398149]
[1680698688874,2.85278255,1909.2,1908.5,1.0]
[1680698689190,2.63428255,1909.2,1908.5,0.00402144]
[1680698689401,2.63428255,1909.2,1908.5,0.02565972]
[1680698689605,2.63428255,1909.2,1908.5,2.21265972]
[1680698689809,2.63428255,1909.2,1908.6,2.192]
[1680698689989,2.63428255,1909.2,1908.6,0.00402144]
[1680698690293,2.63428255,1909.2,1908.7,0.021636]
[1680698691263,0.002,1909.4,1908.9,2.192]
[1680698691596,2.37625,1909.9,1909.0,0.02163261]
[1680698691758,0.23185444,1909.8,1909.0,0.02163261]
[1680698691957,2.60111444,1909.8,1909.0,0.02163261]
[1680698692162,2.63428255,1909.7,1909.0,0.02163261]
[1680698692364,0.26342826,1909.6,1909.0,0.02163261]
[1680698692584,2.63428255,1909.5,1909.0,0.02163261]
[1680698692977,0.002,1909.7,1909.0,0.02163261]
[1680698693302,2.63428255,1909.7,1909.0,0.02163261]
[1680698694060,2.81755255,1909.7,1909.0,0.02163261]
[1680698694265,2.63428255,1909.6,1909.0,0.02163261]
[1680698694492,0.26342826,1909.5,1909.0,0.02163261]
[1680698694697,3.08100081,1909.5,1909.0,0.02163261]
[1680698695000,2.63428255,1909.4,1909.0,0.02163261]
[1680698696399,2.81758255,1909.4,1909.0,0.02163261]
[1680698696574,2.81758255,1909.4,1908.9,0.00402144]
[1680698696772,0.28175826,1909.3,1908.9,0.00402144]
[1680698697101,2.63428255,1909.2,1908.9,0.00402144]
[1680698697275,2.81760255,1909.2,1908.8,0.00402144]
[1680698697468,2.81760255,1909.2,1908.7,0.00402144]
[1680698697469,0.28176026,1909.1,1908.7,0.00402144]
[1680698697667,2.63428255,1909.0,1908.7,0.00402144]
[1680698697865,2.63428255,1909.0,1908.6,0.00402144]
[1680698698066,2.92588683,1909.0,1908.6,0.00402144]
[1680698700591,2.92588683,1909.0,1908.5,0.02565972]
[1680698701429,0.002,1909.2,1908.5,0.02565972]
[1680698701589,0.002,1909.5,1908.7,5.508]
[1680698701791,2.63428255,1909.5,1908.8,3.02163488]
[1680698701991,0.19127,1909.7,1908.9,2.187]
[1680698702188,2.81755255,1909.7,1908.8,10.72063488]
[1680698702427,2.63188439,1909.7,1908.8,10.72465632]
[1680698702616,2.63188439,1909.7,1908.8,13.35893887]
[1680698702823,2.63188439,1909.7,1908.8,14.2471765]
[1680698703021,2.63188439,1909.7,1908.8,13.35893887]
[1680698703335,0.421209,1909.8,1909.1,2.189]
[1680698703493,0.419209,1909.8,1909.2,5.508]
[1680698703692,0.419209,1909.8,1909.2,5.53565179]
[1680698704127,0.419209,1909.8,1909.4,2.187]
[1680698704326,0.419209,1909.8,1909.4,2.21264951]
[1680698706320,0.419209,1909.8,1909.5,7.7]
[1680698706524,0.419209,1909.8,1909.5,7.70602144]
[1680698706930,0.419209,1909.8,1909.7,7.7]
[1680698707149,0.419209,1909.8,1909.7,10.70602144]
[1680698708953,0.419209,1909.8,1909.7,13.34030399]
[1680698709848,0.419209,1909.8,1909.7,13.57030399]
[1680698710217,0.419209,1909.8,1909.7,13.34030399]
[1680698710419,0.419209,1909.8,1909.7,10.70602144]
[1680698713650,0.419209,1909.8,1909.7,10.69928899]
[1680698713845,0.419209,1909.8,1909.7,13.33357154]
[1680698715851,0.419209,1909.8,1909.7,13.56357154]
[1680698716050,0.419209,1909.8,1909.7,14.61706793]
[1680698716363,0.419209,1909.8,1909.7,13.73357154]
[1680698717376,9e-06,1909.8,1909.7,14.76357154]
[1680698717580,9e-06,1909.8,1909.7,16.04706793]
[1680698717742,9e-06,1909.8,1909.7,17.03671938]
[1680698718581,0.11000001,1910.7,1909.7,17.03671938]
[1680698718761,0.11000001,1910.7,1910.2,2.192]
[1680698719078,0.11000001,1910.7,1910.0,0.002]
[1680698719079,0.29317001,1910.7,1910.0,0.002]
[1680698719278,0.11000001,1910.7,1910.0,3.88349639]
[1680698719577,0.29317001,1910.7,1910.0,3.0]
[1680698719782,0.11600001,1910.7,1910.0,3.0]
[1680698719967,0.11600001,1910.7,1910.1,2.192]
[1680698719968,0.11000001,1910.7,1910.1,2.192]
[1680698720143,0.11000001,1910.7,1910.1,5.192]
[1680698720349,0.11000001,1910.7,1910.1,5.194]
[1680698721073,0.11000001,1910.7,1910.2,5.508]
[1680698721250,0.11000001,1910.7,1910.2,0.002]
[1680698721452,0.11000001,1910.7,1910.1,14.1257]
[1680698721669,0.11000001,1910.7,1910.1,14.1277]
[1680698721846,0.29317001,1910.7,1910.1,14.1277]
[1680698722068,2.63428255,1910.6,1910.1,11.1277]
[1680698722388,2.64028255,1910.6,1910.1,0.002]
[1680698722595,0.26402826,1910.5,1909.8,47.6567]
[1680698722807,0.27002826,1910.5,1909.8,47.6567]
[1680698722959,0.006,1910.5,1909.8,47.6567]
[1680698723590,0.006,1910.5,1909.9,1.085]
[1680698724188,0.006,1910.5,1910.0,3.72528255]
[1680698724491,0.006,1910.6,1910.1,6.834]
[1680698724701,0.11600001,1910.7,1910.1,3.96228255]
[1680698724857,0.11600001,1910.7,1910.0,6.606]
[1680698725060,0.24317001,1910.7,1910.0,9.24430399]
[1680698725460,0.24317001,1910.7,1910.0,3.73630399]
[1680698725658,0.24317001,1910.7,1910.0,3.73430399]
[1680698725861,0.06000001,1910.7,1910.0,3.73430399]
[1680698726204,0.06000001,1910.7,1910.1,3.0]
[1680698726494,0.24317001,1910.7,1910.1,3.00402144]
[1680698726664,2.94940356,1910.7,1910.1,3.00402144]
[1680698726859,3.81747255,1910.6,1910.1,0.00402144]
[1680698728062,6.36184255,1910.6,1910.1,0.00402144]
[1680698728267,6.36384255,1910.6,1910.1,0.00402144]
[1680698728581,1.5497,1910.1,1909.9,0.00402144]
[1680698728786,6.37498255,1910.1,1909.9,0.00402144]
[1680698728957,4.81428255,1910.0,1909.7,1.60402144]
[1680698729158,2.37425,1909.9,1909.7,1.60402144]
[1680698729357,0.18325,1909.9,1909.7,1.60402144]
[1680698729986,0.54976,1909.9,1909.7,1.60402144]
[1680698730169,3.78469663,1909.9,1909.7,1.60402144]
[1680698730375,5.97569663,1909.9,1909.7,1.60402144]
[1680698730593,5.42793663,1909.9,1909.7,1.60402144]
[1680698731002,4.81228255,1909.8,1909.7,1.6]
[1680698731167,5.35377621,1909.8,1909.7,1.60402144]
[1680698731368,5.35577621,1909.8,1909.7,1.6]
[1680698732997,5.9635225,1909.8,1909.7,1.53922537]
[1680698733918,5.9635225,1909.8,1909.7,1.47787759]
[1680698735029,1.0,1909.7,1909.2,0.00402144]
[1680698735190,2.191,1909.5,1909.0,0.00402144]
[1680698735375,2.191,1909.5,1908.9,0.00402144]
[1680698735376,4.82528255,1909.5,1908.9,0.00402144]
[1680698735570,2.4101,1909.4,1908.9,0.00402144]
[1680698736387,0.2191,1909.4,1908.8,0.00402144]
[1680698739069,0.40243,1909.1,1908.8,0.00402144]
[1680698739267,0.76909,1909.1,1908.8,0.00402144]
[1680698739467,2.96009,1909.1,1908.6,2.70402144]
[1680698739668,2.191,1909.0,1908.6,2.70402144]
[1680698739863,5.18294255,1909.1,1908.6,2.70402144]
[1680698740101,5.18294255,1909.1,1908.6,2.7]
[1680698740102,3.70259681,1909.0,1908.6,2.7]
[1680698740299,3.70259681,1909.0,1908.5,0.00402144]
[1680698740300,5.89359681,1909.0,1908.5,0.00402144]
[1680698740465,5.89559681,1909.0,1908.4,0.03]
[1680698740671,0.58955968,1908.9,1908.4,0.03]
[1680698740928,0.55008,1908.8,1908.4,0.03]
[1680698741270,6.10880255,1908.8,1908.4,0.03]
[1680698741596,5.37736255,1908.8,1908.4,0.03]
[1680698741796,0.61676764,1908.7,1908.4,0.03]
[1680698741999,0.18337,1908.7,1908.4,0.03]
[1680698742170,0.31843725,1908.7,1908.4,0.03]
[1680698742977,2.193,1908.9,1908.4,0.03]
[1680698743182,5.745,1909.2,1908.4,0.03]
[1680698743187,0.18334,1909.0,1908.4,0.03]